bitfinex/quotes_ETHUSD_20240604
["timestamp","ask_amount","ask_price","bid_price","bid_amount"]
[1717515814971,6.35630979,3803.5,3802.7,4.2683]
[1717515815293,6.35630979,3803.5,3802.8,0.40422644]
[1717515816011,6.35630979,3803.5,3802.9,0.34916007]
[1717515816195,6.35630979,3803.9,3802.9,3.11716007]
[1717515816396,6.35630979,3803.9,3803.0,0.05433241]
[1717515816593,6.35630979,3803.9,3803.1,3.11301216]
[1717515817102,6.35630979,3803.9,3803.2,0.05428985]
[1717515817314,6.35630979,3803.9,3803.3,0.34362966]
[1717515817720,6.35630979,3803.9,3803.4,0.05424728]
[1717515817879,6.35630979,3803.9,3803.5,0.34224723]
[1717515818390,6.35630979,3803.9,3803.6,0.05420473]
[1717515818608,6.35630979,3803.9,3803.7,0.34086488]
[1717515818915,8.98477979,3804.5,3803.7,0.34086488]
[1717515819122,8.98477979,3804.5,3803.8,0.05416218]
[1717515819326,2.62862,3804.3,3803.8,0.05416218]
[1717515819549,2.62875,3804.1,3803.8,0.05416218]
[1717515819746,2.62875,3804.1,3802.9,3.0]
[1717515820023,2.62875,3804.1,3803.0,0.3986533]
[1717515824196,3.308845,3804.1,3803.0,0.3986533]
[1717515825294,2.62875,3804.1,3803.0,0.3986533]
[1717515828745,2.2549,3804.0,3803.0,0.3986533]
[1717515829132,2.62892,3803.9,3803.0,0.3986533]
[1717515831497,2.2549,3804.0,3803.1,2.62942]
[1717515831713,2.2549,3804.0,3803.2,0.34362966]
[1717515831937,2.2549,3804.0,3803.2,0.39894287]
[1717515832146,2.2549,3804.0,3803.3,2.62926]
[1717515832303,2.2549,3804.0,3803.4,0.39751788]
[1717515832507,8.70470979,3804.5,3803.5,2.62911]
[1717515832828,8.70470979,3804.5,3803.6,0.39263743]
[1717515832829,2.62855,3804.4,3803.6,0.39263743]
[1717515833035,2.62876,3804.1,3803.6,0.39263743]
[1717515833238,2.62876,3804.1,3803.6,0.33740934]
[1717515833552,2.62876,3804.1,3803.1,2.62938]
[1717515833707,2.62876,3804.1,3803.2,0.34293844]
[1717515834448,2.4273,3804.0,3803.2,0.34293844]
[1717515834608,2.62889,3803.9,3803.2,0.34293844]
[1717515835747,2.28005478,3803.9,3803.2,0.34293844]
[1717515836793,2.4988,3803.5,3803.3,0.05516353]
[1717515836966,2.4988,3803.5,3802.7,2.62967]
[1717515837161,2.4988,3803.5,3802.8,0.40512141]
[1717515840513,2.4988,3803.5,3802.9,2.62954]
[1717515840809,2.4988,3803.5,3803.0,0.40378286]
[1717515840972,2.4988,3803.5,3803.0,20.40378286]
[1717515841173,2.62926,3803.4,3803.0,20.05531416]
[1717515842763,2.62936,3803.2,3803.0,20.05531416]
[1717515844767,2.62936,3803.2,3803.0,20.40516562]
[1717515844967,2.62936,3803.2,3803.0,20.05531416]
[1717515846217,2.4247,3803.3,3803.1,0.34985146]
[1717515846413,2.62914,3803.6,3803.2,0.05577149]
[1717515848397,2.62914,3803.6,3803.2,0.40147492]
[1717515850023,2.4458,3803.7,3803.3,0.34570343]
[1717515850225,6.35630979,3803.9,3803.3,0.34570343]
[1717515850385,6.35630979,3803.9,3803.4,0.05572893]
[1717515850722,6.35630979,3803.9,3803.5,0.34224723]
[1717515851217,6.35630979,3803.9,3803.6,0.05538435]
[1717515851526,6.35630979,3803.9,3803.7,0.34086488]
[1717515851839,2.4575,3804.3,3803.8,0.05530362]
[1717515852041,2.4575,3804.3,3803.9,0.33671829]
[1717515853312,2.62856,3804.4,3803.9,0.33671829]
[1717515853516,2.62856,3804.4,3804.0,0.0552576]
[1717515853822,6.35630979,3804.5,3804.0,0.33464522]
[1717515854024,6.35630979,3804.5,3804.1,0.33395424]
[1717515854421,6.35630979,3804.5,3804.1,2.96266424]
[1717515854721,6.35630979,3805.0,3804.1,2.96266424]
[1717515855284,6.35630979,3805.0,3804.2,0.05469523]
[1717515855485,6.35630979,3805.0,3804.3,0.32911787]
[1717515855791,6.35630979,3805.0,3804.4,2.62852]
[1717515855992,6.35630979,3805.0,3804.5,0.38236763]
[1717515857935,2.62801,3805.2,3804.5,0.38236763]
[1717515858640,8.78540979,3805.5,3804.5,0.38236763]
[1717515859012,9.10770452,3805.5,3804.5,0.38236763]
[1717515859246,9.10770452,3805.5,3804.5,0.32773621]
[1717515859549,2.62788,3805.4,3804.5,0.32773621]
[1717515860256,2.62788,3805.4,3804.6,0.05440546]
[1717515860558,2.62788,3805.4,3804.7,0.32359166]
[1717515861115,3.99033845,3805.4,3804.7,0.32359166]
[1717515863417,1.889,3805.3,3804.7,0.32359166]
[1717515863640,1.889,3805.3,3804.0,2.62877]
[1717515863849,1.889,3805.3,3804.1,0.32842703]
[1717515864058,1.889,3805.3,3804.1,0.382977]
[1717515864366,2.62839,3804.6,3804.1,0.382977]
[1717515864516,2.62839,3804.6,3804.1,0.05454997]
[1717515864928,2.62839,3804.6,3803.6,2.62904]
[1717515865128,2.62839,3804.6,3804.2,0.05276073]
[1717515865337,2.62839,3804.6,3803.7,0.33602725]
[1717515865622,2.62839,3804.6,3803.8,0.05108859]
[1717515865822,2.62839,3804.6,3803.9,0.33464522]
[1717515866020,2.62864,3804.3,3803.2,5.62934]
[1717515866261,2.62864,3804.3,3803.3,3.39211538]
[1717515866501,2.62864,3804.3,3803.3,0.39211538]
[1717515868404,2.62864,3804.3,3803.3,3.39211538]
[1717515868973,2.62864,3804.3,3803.4,2.6292]
[1717515869281,2.62864,3804.3,3803.5,0.39076344]
[1717515869683,2.62837,3804.7,3803.6,2.62908]
[1717515869902,2.62837,3804.7,3803.7,0.33464522]
[1717515870090,2.62837,3804.7,3803.7,0.38588349]
[1717515870787,2.62837,3804.7,3803.9,2.62885]
[1717515870968,2.62837,3804.7,3804.0,0.38443773]
[1717515872520,2.62855,3804.4,3804.0,0.05117445]
[1717515872866,2.62855,3804.4,3803.6,3.0]
[1717515872867,2.3925,3804.3,3803.6,3.0]
[1717515873068,2.62868,3804.2,3804.1,0.05115318]
[1717515873310,2.62868,3804.2,3803.7,0.33740934]
[1717515873483,2.62868,3804.2,3804.1,0.05099354]
[1717515873697,2.62868,3804.2,3803.7,0.33740934]
[1717515874408,2.62868,3804.2,3803.8,0.05105736]
[1717515874725,2.62868,3804.2,3803.8,0.33740934]
[1717515874902,2.62868,3804.2,3803.9,0.05141778]
[1717515875100,4.98375,3804.6,3803.9,0.05141778]
[1717515875401,4.98375,3804.6,3803.8,0.33740934]
[1717515875610,4.98375,3804.6,3803.9,0.05141778]
[1717515875802,4.98375,3804.6,3803.8,0.33740934]
[1717515876000,4.98375,3804.6,3803.9,0.05141778]
[1717515876202,4.98375,3804.6,3803.8,0.33740934]
[1717515876403,4.98375,3804.6,3803.9,0.05141778]
[1717515876603,4.98375,3804.6,3804.0,0.33395424]
[1717515878313,2.62845,3804.6,3804.0,0.33395424]
[1717515878892,6.35630979,3804.8,3804.0,2.96272424]
[1717515879328,6.35630979,3804.8,3804.1,0.05137523]
[1717515879513,6.35630979,3804.8,3804.2,0.33119049]
[1717515880039,6.35630979,3804.8,3804.3,0.05133269]
[1717515880203,6.35630979,3804.8,3804.4,0.32980872]
[1717515880407,2.62816,3805.0,3804.4,0.32980872]
[1717515881433,2.62816,3805.0,3804.5,0.0510299]
[1717515881640,2.62816,3805.0,3804.6,0.32704541]
[1717515882610,6.35630979,3805.3,3804.6,0.32704541]
[1717515884317,2.62788,3805.4,3804.6,0.32704541]
[1717515886326,2.62805,3805.1,3804.3,2.62857]
[1717515886549,2.62805,3805.1,3804.4,0.32773621]
[1717515888251,4.51722,3804.9,3803.9,2.62882]
[1717515888451,4.51722,3804.9,3804.0,0.38276782]
[1717515888810,2.62822,3804.9,3804.0,0.38276782]
[1717515890050,2.62822,3804.9,3804.1,2.62872]
[1717515890347,2.62822,3804.9,3804.2,0.38134348]
[1717515890854,2.62822,3804.9,3804.2,0.3304996]
[1717515891841,6.35630979,3805.2,3804.3,4.12887]
[1717515892044,6.35630979,3805.2,3804.4,0.37793002]
[1717515893044,6.35630979,3805.2,3804.4,0.32704541]
[1717515894643,6.35630979,3805.2,3804.5,2.62842]
[1717515894824,6.35630979,3805.2,3804.6,0.32566385]
[1717515897879,2.62797,3805.3,3804.6,0.32566385]
[1717515898433,2.62797,3805.3,3804.7,0.05070632]
[1717515898749,2.62797,3805.3,3804.7,0.32359166]
[1717515899070,2.3139,3804.9,3803.5,1.5003]
[1717515899270,2.3139,3804.9,3803.6,0.3318814]
[1717515899492,2.3139,3804.9,3803.6,0.38112219]
[1717515900880,2.62826,3804.8,3803.7,2.62896]
[1717515901176,2.62826,3804.8,3803.8,0.33395424]
[1717515901472,2.62847,3804.5,3803.8,0.38149598]
[1717515902671,4.94212,3804.9,3803.9,2.62884]
[1717515902883,4.94212,3804.9,3804.0,0.3318814]
[1717515903438,2.62822,3804.9,3804.1,0.04765834]
[1717515903770,2.62822,3804.9,3804.2,0.3304996]
[1717515904250,2.62822,3804.9,3804.3,0.0476158]
[1717515904450,2.62822,3804.9,3804.4,0.32911787]
[1717515905650,6.35630979,3805.0,3804.4,0.32911787]
[1717515906840,6.35630979,3805.0,3804.5,0.04757327]
[1717515907072,6.35630979,3805.0,3804.6,0.32704541]
[1717515907379,6.35630979,3805.0,3804.7,0.04738501]
[1717515907565,6.35630979,3805.0,3804.7,0.37304886]
[1717515907770,2.62798,3805.2,3804.7,0.32566385]
[1717515909980,3.305828,3805.2,3804.2,2.62865]
[1717515910202,3.305828,3805.2,3804.3,0.32773621]
[1717515910380,3.305828,3805.2,3804.3,0.37518202]
[1717515910381,2.62816,3805.0,3804.3,0.37518202]
[1717515910560,2.62816,3805.0,3804.3,0.32773621]
[1717515911567,2.62832,3804.8,3803.9,2.62887]
[1717515911751,2.4592,3804.9,3804.0,0.33257233]
[1717515911951,2.4592,3804.9,3804.0,0.38008195]
[1717515912185,2.4592,3804.9,3804.0,0.33257233]
[1717515912766,2.62847,3804.5,3804.0,0.33257233]
[1717515913093,2.62847,3804.5,3804.1,0.04748835]
[1717515913413,2.62847,3804.5,3804.1,0.38075163]
[1717515915393,2.4592,3804.9,3804.2,0.33326328]
[1717515915394,5.08742,3804.9,3804.2,0.33326328]
[1717515915681,2.62822,3804.9,3804.3,0.04744581]
[1717515915876,2.62822,3804.9,3804.4,0.32911787]
[1717515916694,6.35630979,3805.0,3804.4,0.32911787]
[1717515917055,6.35630979,3805.0,3804.5,2.67585327]
[1717515917257,6.35630979,3805.0,3804.6,0.32704541]
[1717515917457,6.35630979,3805.0,3804.7,4.17597074]
[1717515917657,0.41180436,3807.2,3805.3,2.62791]
[1717515917658,6.35630979,3805.9,3805.3,2.62791]
[1717515917879,2.4708,3806.2,3805.4,0.36251646]
[1717515918190,6.35630979,3806.3,3805.4,0.31530455]
[1717515918389,8.73407077,3806.3,3805.4,0.31530455]
[1717515919597,2.62734,3806.2,3805.4,0.31530455]
[1717515919765,2.435,3805.8,3804.8,2.62819]
[1717515919972,2.435,3805.8,3804.9,0.31599505]
[1717515920178,0.695153,3805.7,3804.9,0.36307394]
[1717515920367,2.435,3805.8,3804.9,0.31599505]
[1717515920566,2.435,3805.8,3805.0,0.04705763]
[1717515920801,2.435,3805.8,3804.9,0.31599505]
[1717515920802,2.435,3805.8,3805.1,0.31806664]
[1717515921103,2.62753,3805.9,3805.2,0.04682781]
[1717515921415,8.73407077,3806.3,3805.3,0.31599505]
[1717515921416,2.3308,3806.2,3805.3,0.31599505]
[1717515921716,2.3308,3806.2,3805.4,0.04678529]
[1717515921914,8.98354979,3806.3,3805.5,0.31254275]
[1717515922824,10.30388477,3806.3,3805.5,0.31254275]
[1717515923511,10.30388477,3806.3,3805.1,2.62798]
[1717515923821,10.30388477,3806.3,3805.2,0.31392362]
[1717515925011,8.98354979,3806.3,3805.3,2.62791]
[1717515925210,8.98354979,3806.3,3805.5,2.62776]
[1717515925513,8.98354979,3806.3,3805.6,0.31116198]
[1717515927020,1.889,3806.7,3805.6,0.31116198]
[1717515927021,8.98329979,3806.7,3805.7,2.62762]
[1717515927206,8.98329979,3806.7,3805.8,0.30702004]
[1717515927605,8.98329979,3806.7,3805.9,2.62749]
[1717515927777,9.29396415,3806.7,3806.0,0.30563955]
[1717515930319,8.98329979,3806.7,3806.0,0.30563955]
[1717515931124,2.62699,3806.7,3806.0,0.30563955]
[1717515937122,4.95299,3806.7,3806.0,0.30563955]
[1717515938247,2.62723,3806.3,3805.5,4.12801]
[1717515938450,2.62723,3806.3,3805.6,0.35462921]
[1717515939906,0.788,3806.3,3805.6,0.35462921]
[1717515940681,0.788,3806.3,3805.7,2.62757]
[1717515940810,0.788,3806.3,3805.8,0.30978126]
[1717515941144,0.788,3806.3,3805.9,0.04340347]
[1717515941320,0.788,3806.3,3806.0,0.30840062]
[1717515941549,0.788,3806.4,3806.0,0.30840062]
[1717515941734,2.62695,3806.7,3806.1,0.04336097]
[1717515941946,0.788,3806.6,3806.2,0.30425912]
[1717515942437,0.788,3806.6,3806.3,0.04331154]
[1717515942671,0.788,3806.6,3806.3,0.34688048]
[1717515943481,8.98303979,3807.1,3806.4,0.30356894]
[1717515943645,9.77103979,3807.1,3806.4,0.30356894]
[1717515943851,0.788,3806.9,3806.4,0.30356894]
[1717515944445,0.788,3807.0,3806.4,0.30356894]
[1717515945278,8.98303979,3807.1,3806.4,0.30356894]
[1717515945450,0.788,3806.9,3806.4,0.30356894]
[1717515946076,8.98303979,3807.1,3806.4,0.30356894]
[1717515946979,8.98303979,3807.1,3806.4,0.35610622]
[1717515948099,8.98303979,3807.1,3806.4,0.30356894]
[1717515948393,2.4923,3807.0,3805.9,2.62745]
[1717515948702,2.4923,3807.0,3806.0,0.34607035]
[1717515950204,2.62682,3806.9,3806.0,0.34607035]
[1717515950713,2.62682,3806.9,3806.1,2.62733]
[1717515950866,2.62682,3806.9,3806.2,0.30287878]
[1717515951476,6.35630979,3807.1,3806.3,2.62719]
[1717515951811,6.35630979,3807.1,3806.5,1.5003]
[1717515951973,2.62658,3807.3,3806.6,0.29873815]
[1717515957119,6.35630979,3807.5,3806.7,2.62693]
[1717515957416,6.35630979,3807.5,3806.8,0.29459819]
[1717515958179,7.25456977,3807.5,3806.8,0.29459819]
[1717515958376,9.88102977,3807.5,3806.8,0.29459819]
[1717515958902,11.77002977,3807.5,3806.8,0.29459819]
[1717515959213,2.6266,3807.2,3806.8,0.29459819]
[1717515959601,2.6266,3807.2,3806.9,0.04257406]
[1717515959805,3.29509764,3807.2,3806.9,0.04257406]
[1717515960014,3.29509764,3807.2,3806.9,0.01537406]
[1717515960190,3.29509764,3807.2,3806.9,0.04164616]
[1717515960390,4.2237,3807.1,3805.7,1.5003]
[1717515960603,4.2237,3807.1,3805.8,0.30425912]
[1717515960816,0.48921976,3807.0,3805.8,0.34629191]
[1717515961121,2.62695,3806.7,3805.8,2.97384191]
[1717515961485,2.62672,3807.1,3805.8,2.97384191]
[1717515961777,2.62672,3807.1,3806.1,2.62734]
[1717515961983,2.62672,3807.1,3806.3,1.5003]
[1717515962184,2.62672,3807.1,3806.4,0.30011829]
[1717515962486,2.62672,3807.1,3806.4,0.34071574]
[1717515964285,2.889392,3807.1,3806.4,0.34071574]
[1717515966502,2.62672,3807.1,3806.4,0.34071574]
[1717515967731,2.62672,3807.1,3806.4,0.30011829]
[1717515968408,2.62672,3807.1,3806.5,1.5003]
[1717515968613,2.62672,3807.1,3806.6,0.29873815]
[1717515969009,2.62672,3807.1,3806.7,0.04050599]
[1717515969199,2.62672,3807.1,3806.8,0.2973581]
[1717515969635,8.98271979,3807.5,3806.9,0.04046351]
[1717515969837,8.98271979,3807.5,3807.0,0.29321835]
[1717515970502,6.35630979,3807.5,3807.0,0.29321835]
[1717515970699,6.35630979,3807.5,3807.1,1.5003]
[1717515970933,6.35630979,3807.5,3807.2,0.29183858]
[1717515971310,6.35630979,3807.5,3807.3,0.04037856]
[1717515971523,2.62616,3807.9,3807.3,0.04037856]
[1717515971721,2.62616,3807.9,3807.2,0.29183858]
[1717515972578,4.75540698,3807.9,3807.2,0.29183858]
[1717515973825,2.62636,3807.6,3806.6,1.5003]
[1717515974020,2.62668,3807.1,3806.0,1.5003]
[1717515974259,2.62668,3807.1,3806.7,0.04050599]
[1717515974477,2.62668,3807.1,3806.2,2.62725]
[1717515974620,2.62668,3807.1,3806.7,0.2973581]
[1717515975056,2.62668,3807.1,3806.8,0.04048475]
[1717515975959,6.35630979,3807.7,3806.9,1.79696809]
[1717515975960,2.62638,3807.6,3806.9,1.79696809]
[1717515976318,2.62638,3807.6,3807.0,0.04023781]
[1717515976539,2.62638,3807.6,3807.1,0.29183858]
[1717515977942,4.75564898,3807.6,3806.6,2.627]
[1717515978147,4.75564898,3807.6,3806.7,0.33478192]
[1717515980380,7.16414898,3807.6,3806.7,0.33478192]
[1717515981198,5.03488,3807.6,3806.8,2.62687]
[1717515981509,5.03488,3807.6,3806.9,0.3333596]
[1717515981660,5.03488,3807.6,3806.9,0.04014125]
[1717515981661,2.62656,3807.3,3806.9,0.04014125]
[1717515981857,2.62656,3807.3,3806.3,3.0]
[1717515982085,2.62656,3807.3,3806.4,0.29873815]
[1717515982269,3.318966,3807.3,3806.4,0.33899947]
[1717515982815,2.62677,3807.0,3806.4,0.04026132]
[1717515983099,2.62677,3807.0,3806.1,2.62731]
[1717515983296,2.62677,3807.0,3806.2,0.30218863]
[1717515983688,2.62677,3807.0,3806.3,0.04028257]
[1717515983869,3.3940676,3807.0,3806.3,0.04028257]
[1717515984394,2.62677,3807.0,3806.4,0.30080839]
[1717515984594,2.62677,3807.0,3806.4,0.34106971]
[1717515985196,2.62677,3807.0,3806.4,0.04026132]
[1717515985568,2.62677,3807.0,3806.0,2.62742]
[1717515985761,2.62677,3807.0,3806.5,0.04024007]
[1717515986121,3.96045798,3807.0,3806.6,0.04021883]
[1717515986461,3.96045798,3807.0,3806.1,0.30287878]
[1717515986713,2.62677,3807.0,3806.1,0.30287878]
[1717515986915,2.62677,3807.0,3806.2,0.04030381]
[1717515987260,2.62677,3807.0,3806.3,0.3014985]
[1717515987664,2.62677,3807.0,3806.4,0.04026132]
[1717515987868,2.62677,3807.0,3806.4,0.34037961]
[1717515988034,2.62677,3807.0,3806.4,0.30011829]
[1717515988965,3.96045798,3807.0,3806.4,0.30011829]
[1717515989667,2.62696,3806.7,3805.7,1.5003]
[1717515989965,2.62696,3806.7,3805.8,0.34547677]
[1717515989966,2.4117,3806.6,3805.8,0.34547677]
[1717515991067,2.62708,3806.5,3805.8,0.34547677]
[1717515991229,2.6273,3806.2,3805.8,0.34547677]
[1717515991429,2.6273,3806.2,3805.8,0.04052745]
[1717515991639,2.62743,3806.0,3805.8,0.04052745]
[1717515991964,2.62743,3806.0,3805.2,2.62792]
[1717515992284,2.62743,3806.0,3805.3,0.31530455]
[1717515992595,2.62743,3806.0,3805.4,0.04061247]
[1717515992873,2.62743,3806.0,3805.5,0.31392362]
[1717515993398,2.62743,3806.0,3805.6,0.04056996]
[1717515993888,3.00660826,3806.0,3805.5,0.31392362]
[1717515994289,3.00660826,3806.0,3805.6,0.04056996]
[1717515994662,2.62771,3805.6,3804.8,2.6282]
[1717515995005,2.62771,3805.6,3804.9,0.35878541]
[1717515995354,2.62788,3805.4,3804.9,0.35878541]
[1717515996407,2.62809,3805.1,3804.9,0.04071877]
[1717515996705,2.422,3805.0,3804.9,0.04071877]
[1717515996878,2.62821,3804.9,3803.6,2.62904]
[1717515997195,2.62821,3804.9,3803.7,0.37553483]
[1717515999660,2.62842,3804.6,3803.7,0.37553483]
[1717516002629,2.62863,3804.3,3803.7,0.37553483]
[1717516002942,5.182493,3804.3,3803.7,0.37553483]
[1717516003217,4.91963,3804.3,3803.7,0.37553483]
[1717516004691,8.98468979,3804.7,3803.7,0.37553483]
[1717516005764,8.98468979,3804.7,3803.8,2.62894]
[1717516005982,8.98468979,3804.7,3803.9,0.37639044]
[1717516006260,6.35630979,3804.7,3804.0,4.1291]
[1717516006564,6.35630979,3804.7,3804.2,2.62867]
[1717516006765,6.35630979,3804.7,3804.2,0.33119049]
[1717516007360,2.62828,3804.8,3804.2,0.33119049]
[1717516011807,2.2886,3804.7,3804.2,0.33119049]
[1717516012002,2.6284,3804.6,3804.2,0.33119049]
[1717516012303,2.6284,3804.6,3803.4,2.62922]
[1717516012550,2.6284,3804.6,3803.5,0.33740934]
[1717516012732,2.6284,3804.6,3803.5,0.37982655]
[1717516013457,2.6284,3804.6,3803.6,2.62907]
[1717516013666,2.6284,3804.6,3803.8,2.6289]
[1717516013954,2.6284,3804.6,3803.9,0.37710569]
[1717516014739,6.35630979,3804.8,3803.9,0.37710569]
[1717516015044,6.35630979,3804.8,3803.9,0.33464522]
[1717516015456,6.35630979,3804.8,3804.0,2.6288]
[1717516015611,6.35630979,3804.8,3804.1,0.3318814]
[1717516018149,2.62834,3804.7,3804.1,0.3318814]
[1717516018348,2.62857,3804.4,3804.2,0.04239666]
[1717516018515,2.62857,3804.4,3803.6,2.62902]
[1717516018849,2.62857,3804.4,3803.7,0.37991236]
[1717516019810,3.20984072,3804.4,3803.7,0.37991236]
[1717516021348,2.62857,3804.4,3803.7,0.37991236]
[1717516026771,2.62857,3804.4,3803.7,0.04250302]
[1717516027008,2.62857,3804.4,3803.5,2.62915]
[1717516027155,2.62857,3804.4,3803.8,0.04281137]
[1717516027156,2.62874,3804.2,3803.8,0.04281137]
[1717516027362,2.62874,3804.2,3803.1,2.62937]
[1717516027363,2.43,3803.9,3803.1,2.62937]
[1717516027607,2.43,3803.9,3803.2,0.38380392]
[1717516028300,2.62897,3803.8,3803.2,0.38380392]
[1717516028496,2.62897,3803.8,3803.2,0.04293904]
[1717516028712,2.62915,3803.5,3803.2,0.04293904]
[1717516028873,2.6293,3803.3,3803.0,20.0]
[1717516030177,2.62943,3803.1,3803.0,20.0]
[1717516032888,5.06073,3803.1,3803.0,20.0]
[1717516034127,8.06073,3803.1,3803.0,15.0]
[1717516034289,12.01142577,3803.1,3803.0,15.0]
[1717516034492,13.95146835,3803.1,3803.0,12.54213211]
[1717516034996,14.52006077,3803.1,3803.0,12.54213211]
[1717516035335,2.63029,3801.9,3800.8,2.631]
[1717516035490,2.63029,3801.9,3800.9,0.37406133]
[1717516036746,2.3289,3802.6,3801.3,2.63065]
[1717516036747,2.62999,3802.3,3801.3,2.63065]
[1717516036974,2.62999,3802.3,3801.4,2.73493379]
[1717516037268,2.6297,3802.8,3801.5,2.63052]
[1717516037449,2.6297,3802.8,3801.6,0.36299119]
[1717516038073,2.6297,3802.8,3801.7,2.63036]
[1717516038237,2.6297,3802.8,3801.8,0.36160775]
[1717516041068,6.35630979,3803.0,3802.2,2.63]
[1717516041259,6.35630979,3803.0,3802.3,0.35123427]
[1717516041423,6.35630979,3803.4,3802.3,0.35123427]
[1717516041620,6.35630979,3803.4,3802.4,0.01316264]
[1717516041820,6.35630979,3803.4,3802.5,2.98239717]
[1717516042435,6.35630979,3803.4,3802.8,2.62958]
[1717516042684,6.35630979,3803.4,3803.0,5.03956]
[1717516042826,6.35630979,3803.4,3803.1,0.3484687]
[1717516043027,6.35630979,3804.0,3803.1,0.38904883]
[1717516043263,6.35630979,3804.0,3803.2,2.62933]
[1717516043435,6.35630979,3804.0,3803.3,0.34293844]
[1717516043636,6.35630979,3804.0,3803.3,0.38342046]
[1717516043865,6.35630979,3804.0,3803.5,2.62915]
[1717516044162,6.35630979,3804.0,3803.6,0.38117546]
[1717516045569,6.35630979,3804.0,3803.6,0.04031058]
[1717516045865,1.86663098,3803.9,3803.6,0.04031058]
[1717516046240,1.86663098,3803.9,3802.5,2.3434]
[1717516046441,1.86663098,3803.9,3801.8,0.2628]
[1717516046442,1.86663098,3803.9,3802.3,2.62997]
[1717516046780,2.62934,3803.3,3802.3,2.62997]
[1717516047138,2.62934,3803.3,3802.4,0.03752579]
[1717516047475,1.889,3803.6,3802.4,0.03752579]
[1717516047476,2.62943,3803.1,3802.4,0.03752579]
[1717516047973,2.62943,3803.1,3802.5,0.0375045]
[1717516048282,2.62943,3803.1,3801.9,2.63025]
[1717516048502,2.62943,3803.1,3802.6,0.03748321]
[1717516048638,2.62943,3803.1,3802.3,2.62998]
[1717516048836,2.62943,3803.1,3802.7,0.03788895]
[1717516049036,2.62943,3803.1,3802.3,2.62998]
[1717516049266,2.62943,3803.1,3802.8,0.03786767]
[1717516049575,2.62943,3803.1,3802.4,0.35538318]
[1717516049776,6.35630979,3803.5,3802.5,2.66773195]
[1717516050075,6.35630979,3803.5,3802.7,2.62965]
[1717516050269,6.35630979,3803.5,3802.8,0.34985146]
[1717516050474,6.35630979,3803.5,3802.8,0.38772955]
[1717516050720,12.31,3803.8,3802.8,0.38772955]
[1717516050978,12.31,3803.8,3803.2,2.62931]
[1717516051294,6.35630979,3803.9,3803.3,0.38187032]
[1717516051774,6.35630979,3803.9,3803.3,0.34432089]
[1717516053252,6.35630979,3803.9,3803.4,2.62921]
[1717516053455,6.35630979,3803.9,3803.5,0.34224723]
[1717516054133,6.35630979,3804.4,3803.6,0.03737451]
[1717516054338,8.57562767,3804.4,3803.7,0.33740934]
[1717516054538,6.35630979,3804.4,3803.8,0.03733196]
[1717516055488,2.62842,3804.6,3803.9,0.33602725]
[1717516055645,2.62842,3804.6,3803.9,0.37333793]
[1717516055844,2.62842,3804.6,3803.9,0.33602725]
[1717516056684,3.52680898,3804.7,3803.7,2.62898]
[1717516056844,2.62848,3804.5,3803.7,0.33464522]
[1717516057039,2.62871,3804.2,3802.9,2.62956]
[1717516057245,2.3163,3804.2,3803.0,0.34362966]
[1717516057573,1.05616098,3804.1,3803.0,0.37982734]
[1717516058444,1.05616098,3804.1,3803.0,0.34362966]
[1717516058645,2.62892,3803.9,3803.0,0.34362966]
[1717516058874,2.62913,3803.6,3802.5,2.62983]
[1717516059057,2.62913,3803.6,3802.6,0.35054286]
[1717516059262,2.62913,3803.6,3802.8,2.62963]
[1717516059569,2.62913,3803.6,3802.9,0.38468766]
[1717516061146,2.892043,3803.6,3802.9,0.38468766]
[1717516062739,2.62932,3803.3,3802.9,0.03621896]
[1717516063040,2.62932,3803.3,3802.4,2.62988]
[1717516063239,2.62932,3803.3,3803.0,0.03645803]
[1717516063540,2.62932,3803.3,3802.5,0.35330865]
[1717516063725,0.262913,3803.6,3802.6,2.62977]
[1717516063927,0.262913,3803.6,3802.7,0.34985146]
[1717516064235,0.262913,3803.6,3802.8,0.03650407]
[1717516064428,0.262913,3803.6,3802.8,0.38497277]
[1717516066421,8.98535979,3803.7,3802.8,0.38497277]
[1717516066618,6.35630979,3803.7,3802.9,0.34777736]
[1717516066812,6.35630979,3803.7,3802.9,2.97733736]
[1717516067224,6.35630979,3803.7,3803.1,2.62938]
[1717516067463,6.35630979,3803.7,3803.2,0.34570343]
[1717516067669,6.35630979,3803.7,3803.2,0.38223345]
[1717516068638,6.35630979,3803.7,3803.3,2.62928]
[1717516068957,6.35630979,3803.7,3803.4,0.34432089]
[1717516069139,6.35630979,3803.7,3803.4,0.38076322]
[1717516071752,2.62878,3804.1,3803.4,0.38076322]
[1717516072131,2.62878,3804.1,3803.4,0.34432089]
[1717516073931,6.35630979,3804.3,3803.4,0.34432089]
[1717516076217,3.52717398,3804.2,3803.4,0.34432089]
[1717516080365,2.62888,3803.9,3803.4,0.34432089]
[1717516080757,2.62888,3803.9,3802.9,2.62956]
[1717516081004,2.62888,3803.9,3803.0,0.34570343]
[1717516081191,2.62888,3803.9,3803.0,0.3821649]
[1717516081361,2.9816164,3803.9,3803.0,0.3821649]
[1717516081992,2.62909,3803.6,3803.0,0.3821649]
[1717516082695,0.3527364,3803.9,3803.0,0.3821649]
[1717516082898,2.62885,3804.0,3803.1,2.62941]
[1717516083103,2.62885,3804.0,3803.2,0.34362966]
[1717516083267,2.62885,3804.0,3803.2,0.38012147]
[1717516084172,2.62885,3804.0,3803.3,2.452]
[1717516084376,2.62867,3804.2,3803.4,2.97146723]
[1717516084586,0.89849798,3804.1,3803.4,3.00791648]
[1717516084799,2.62883,3804.0,3803.4,0.03644925]
[1717516084979,2.62883,3804.0,3803.0,2.62947]
[1717516085172,2.62883,3804.0,3803.1,0.34432089]
[1717516085375,2.62883,3804.0,3803.1,0.38083398]
[1717516085919,2.62883,3804.0,3803.3,2.62926]
[1717516086215,2.62883,3804.0,3803.4,0.37869648]
[1717516086403,3.61719378,3804.0,3803.4,0.03644925]
[1717516086602,3.61719378,3804.0,3802.9,5.03904]
[1717516086792,3.61719378,3804.0,3803.0,0.38154654]
[1717516087609,2.62904,3803.7,3803.0,0.38154654]
[1717516089652,2.62926,3803.4,3803.0,0.03653438]
[1717516089952,2.892186,3803.4,3803.0,0.03653438]
[1717516090159,2.892186,3803.4,3802.5,5.09661]
[1717516090301,2.892186,3803.4,3803.1,0.03648879]
[1717516090501,2.892186,3803.4,3802.6,0.35192572]